[Event "Championnat du monde jeunes U10"]
[Date "2024.11.20"]
[White "Tugsbilguun, Davganamdag"]
[Black "Yevsieiev, Yaroslav"]
[WhiteElo "1660"]
[BlackElo "1706"]
[Round "6.43"]
[Result "1/2-1/2"]
[TimeControl "5400+30"]

1. e4 {[%clk 1:30:58]} 1... e5 {[%clk 1:30:57]} 2. Nf3 {[%clk 1:31:27]} 2... Nc6
{[%clk 1:31:23]} 3. d4 {[%clk 1:31:52]} 3... exd4 {[%clk 1:31:49]} 4. Nxd4
{[%clk 1:32:18]} 4... Bc5 {[%clk 1:32:16]} 5. Nb3 {[%clk 1:32:43]} 5... Bb6
{[%clk 1:32:42]} 6. Nc3 {[%clk 1:33:08]} 6... d6 {[%clk 1:33:02]} 7. Qe2 {[%clk
1:33:33]} 7... Nd4 {[%clk 1:30:56]} 8. Qd3 {[%clk 1:32:37]} 8... Nxb3 {[%clk
1:26:41]} 9. axb3 {[%clk 1:33:00]} 9... a6 {[%clk 1:25:08]} 10. Be3 {[%clk
1:31:47]} 10... Bxe3 {[%clk 1:25:24]} 11. Qxe3 {[%clk 1:32:11]} 11... Bd7 {[%clk
1:25:30]} 12. O-O-O {[%clk 1:31:35]} 12... Nf6 {[%clk 1:24:21]} 13. f3 {[%clk
1:30:59]} 13... O-O {[%clk 1:23:29]} 14. g4 {[%clk 1:29:14]} 14... Bc6 {[%clk
1:23:39]} 15. h4 {[%clk 1:28:50]} 15... a5 {[%clk 1:23:52]} 16. Qd4 {[%clk
1:24:40]} 16... Qd7 {[%clk 1:22:34]} 17. h5 {[%clk 1:24:40]} 17... a4 {[%clk
1:22:53]} 18. g5 {[%clk 1:24:18]} 18... Ne8 {[%clk 1:23:09]} 19. bxa4 {[%clk
1:21:25]} 19... Bxa4 {[%clk 1:21:39]} 20. g6 {[%clk 1:21:31]} 20... c5 {[%clk
1:20:00]} 21. Qd2 {[%clk 1:19:09]} 21... Bb5 {[%clk 1:19:55]} 22. Bxb5 {[%clk
1:05:03]} 22... Ra1+ {[%clk 1:17:17]} 23. Nb1 {[%clk 1:05:27]} 23... Qxb5 {[%clk
1:17:38]} 24. h6 {[%clk 1:04:20]} 24... fxg6 {[%clk 1:15:55]} 25. hxg7 {[%clk
1:03:06]} 25... Rf7 {[%clk 1:11:12]} 26. f4 {[%clk 0:57:19]} 26... Qc4 {[%clk
1:04:03]} 27. b3 {[%clk 0:55:57]} 27... Qxe4 {[%clk 1:03:58]} 28. Rde1 {[%clk
0:54:16]} 28... Qc6 {[%clk 1:03:12]} 29. f5 Rxf5 {[%clk 0:55:56]} 30. Qh6 {[%clk
0:52:59]} 30... Nf6 {[%clk 0:47:01]} 31. Re6 {[%clk 0:42:24]} 31... Rh5 {[%clk
0:45:42]} 32. Rxh5 {[%clk 0:42:01]} 32... Nxh5 {[%clk 0:45:36]} 33. Kb2 {[%clk
0:41:15]} 33... Ra8 {[%clk 0:45:25]} 34. Rxg6 {[%clk 0:35:36]} 34... hxg6 35.
Qh8+ Kf7 36. Qxa8 Kxg7 37. Qd8 1/2-1/2

[Variant "Standard"]
[Site "Europe Echecs"]

[Event "Championnat du monde jeunes U10"]
[Date "2024.11.20"]
[White "Burba, Mikita"]
[Black "Schettini Acuna, Massimo Matteo"]
[WhiteElo "1528"]
[BlackElo "1703"]
[Round "6.44"]
[Result "1-0"]
[TimeControl "5400+30"]

1. e4 {[%clk 1:30:58]} 1... e5 {[%clk 1:30:52]} 2. Nf3 {[%clk 1:31:22]} 2... Nc6
{[%clk 1:31:14]} 3. d4 {[%clk 1:31:47]} 3... exd4 {[%clk 1:31:34]} 4. Nxd4
{[%clk 1:32:11]} 4... Nf6 {[%clk 1:31:51]} 5. Nxc6 {[%clk 1:32:35]} 5... bxc6
{[%clk 1:32:09]} 6. e5 {[%clk 1:32:58]} 6... Qe7 {[%clk 1:32:22]} 7. Qe2 {[%clk
1:33:21]} 7... Nd5 {[%clk 1:32:40]} 8. c4 {[%clk 1:33:46]} 8... Ba6 {[%clk
1:32:45]} 9. b3 {[%clk 1:34:05]} 9... O-O-O {[%clk 1:32:17]} 10. Bb2 {[%clk
1:24:51]} 10... f6 {[%clk 1:27:26]} 11. exf6 {[%clk 1:22:45]} 11... Nxf6 {[%clk
1:27:46]} 12. Qxe7 {[%clk 1:16:37]} 12... Bxe7 {[%clk 1:28:05]} 13. Be2 {[%clk
1:07:20]} 13... Bc5 {[%clk 1:17:02]} 14. O-O {[%clk 1:06:42]} 14... d5 {[%clk
1:09:27]} 15. Nd2 {[%clk 0:49:46]} 15... Rhe8 {[%clk 0:54:52]} 16. Bf3 {[%clk
0:37:11]} 16... Bb4 {[%clk 0:51:41]} 17. Rfd1 {[%clk 0:34:29]} 17... Re7 {[%clk
0:35:26]} 18. a3 {[%clk 0:31:52]} 18... Bd6 {[%clk 0:35:25]} 19. g3 {[%clk
0:30:41]} 19... Rde8 {[%clk 0:34:37]} 20. Bxf6 {[%clk 0:27:39]} 20... gxf6
{[%clk 0:34:43]} 21. cxd5 {[%clk 0:27:52]} 21... cxd5 {[%clk 0:34:49]} 22. Bxd5
{[%clk 0:28:12]} 22... Be5 {[%clk 0:34:40]} 23. Ra2 {[%clk 0:27:26]} 23... Be2
{[%clk 0:29:37]} 24. Rc1 {[%clk 0:21:54]} 24... Bd4 {[%clk 0:22:44]} 25. Nc4
{[%clk 0:19:04]} 25... Rd8 {[%clk 0:19:56]} 26. Bg2 {[%clk 0:17:15]} 26... c5
{[%clk 0:17:08]} 27. h4 {[%clk 0:16:45]} 27... Kc7 {[%clk 0:16:13]} 28. b4
{[%clk 0:15:42]} 28... Rde8 {[%clk 0:14:23]} 29. bxc5 {[%clk 0:13:47]} 29...
Bxc5 {[%clk 0:14:03]} 30. Ne3 {[%clk 0:13:52]} 30... Kb6 {[%clk 0:07:08]} 31.
Nd5+ {[%clk 0:11:55]} 31... Kb5 {[%clk 0:05:52]} 32. Nxe7 {[%clk 0:12:17]} 32...
Rxe7 {[%clk 0:06:09]} 33. Rb2+ {[%clk 0:12:40]} 33... Ka4 {[%clk 0:06:12]} 34.
Rxc5 {[%clk 0:13:02]} 34... Kxa3 {[%clk 0:06:36]} 35. Rb1 {[%clk 0:13:21]} 35...
Ka2 {[%clk 0:05:19]} 36. Rb8 {[%clk 0:13:36]} 36... Re5 {[%clk 0:05:10]} 37.
Bd5+ {[%clk 0:13:57]} 37... Rxd5 {[%clk 0:05:10]} 38. Rxd5 {[%clk 0:14:21]}
38... Bb5 {[%clk 0:05:04]} 39. Rdxb5 {[%clk 0:14:47]} 39... a6 {[%clk 0:04:52]}
40. Ra5# {[%clk 0:15:12]} 1-0

[Variant "Standard"]
[Site "Europe Echecs"]

[Event "Championnat du monde jeunes U10"]
[Date "2024.11.20"]
[White "Kaloh, Edvard"]
[Black "DAmato, Raffaele"]
[WhiteElo "1506"]
[BlackElo "1695"]
[Round "6.45"]
[Result "1/2-1/2"]
[TimeControl "5400+30"]

1. e4 {[%clk 1:26:12]} 1... e6 {[%clk 1:30:59]} 2. d4 {[%clk 1:26:34]} 2... d5
{[%clk 1:31:26]} 3. exd5 {[%clk 1:26:59]} 3... exd5 {[%clk 1:31:54]} 4. Bd3
{[%clk 1:27:19]} 4... Nf6 {[%clk 1:31:58]} 5. Nf3 {[%clk 1:27:41]} 5... Be7
{[%clk 1:31:39]} 6. O-O {[%clk 1:27:55]} 6... O-O {[%clk 1:31:58]} 7. Nbd2
{[%clk 1:27:50]} 7... Bg4 {[%clk 1:31:45]} 8. Re1 {[%clk 1:27:11]} 8... Nc6
{[%clk 1:31:31]} 9. c3 {[%clk 1:27:28]} 9... Re8 {[%clk 1:25:44]} 10. h3 {[%clk
1:27:25]} 10... Bh5 {[%clk 1:22:47]} 11. g4 {[%clk 1:27:11]} 11... Bg6 {[%clk
1:23:10]} 12. Bxg6 {[%clk 1:27:12]} 12... hxg6 {[%clk 1:22:53]} 13. Ne5 {[%clk
1:26:02]} 13... Bd6 {[%clk 1:22:12]} 14. f4 {[%clk 1:25:55]} 14... Bxe5 {[%clk
1:17:01]} 15. fxe5 {[%clk 1:25:28]} 15... Nh7 {[%clk 1:17:19]} 16. Nf3 {[%clk
1:25:30]} 16... f6 {[%clk 1:14:23]} 17. Qc2 {[%clk 1:19:08]} 17... fxe5 {[%clk
1:13:30]} 18. dxe5 {[%clk 1:18:20]} 18... Rf8 {[%clk 1:11:36]} 19. Kg2 {[%clk
1:16:44]} 19... Qe8 {[%clk 1:10:06]} 20. Qb3 {[%clk 1:16:06]} 20... Qf7 {[%clk
1:10:06]} 21. Qd1 {[%clk 1:15:10]} 21... Rae8 {[%clk 1:01:58]} 22. Rf1 {[%clk
1:14:42]} 22... Nxe5 {[%clk 0:58:01]} 23. Nxe5 {[%clk 1:11:13]} 23... Qxf1+
{[%clk 0:58:19]} 24. Qxf1 {[%clk 1:11:39]} 24... Rxf1 {[%clk 0:58:42]} 25. Kxf1
Rxe5 {[%clk 0:59:04]} 26. Bf4 {[%clk 1:11:29]} 26... Re7 {[%clk 0:58:47]} 27.
Bg3 {[%clk 1:10:15]} 27... c6 {[%clk 0:58:24]} 28. Kf2 {[%clk 1:08:34]} 28...
Ng5 {[%clk 0:58:00]} 29. h4 {[%clk 1:07:51]} 29... Ne4+ {[%clk 0:57:56]} 30. Kf3
{[%clk 1:05:52]} 30... Nxg3 {[%clk 0:56:21]} 31. Kxg3 {[%clk 1:06:13]} 31... Re2
{[%clk 0:56:46]} 32. Rb1 {[%clk 1:05:51]} 32... Kf7 {[%clk 0:56:29]} 33. Kf3
{[%clk 1:06:15]} 33... Rd2 {[%clk 0:56:40]} 34. Kf4 {[%clk 1:05:35]} 34... Re2
{[%clk 0:54:44]} 35. Kf3 {[%clk 1:05:25]} 35... Re4 {[%clk 0:54:32]} 36. Rf1
{[%clk 1:05:37]} 36... Ke7 {[%clk 0:54:27]} 37. b3 {[%clk 1:05:47]} 37... b5
{[%clk 0:54:19]} 38. Rg1 {[%clk 1:03:28]} 38... a5 {[%clk 0:53:26]} 39. h5
{[%clk 1:03:47]} 39... gxh5 {[%clk 0:53:39]} 40. gxh5 {[%clk 1:03:00]} 40... Kf6
{[%clk 0:53:15]} 41. Rg6+ {[%clk 1:03:24]} 41... Kf7 {[%clk 0:51:00]} 42. Rxc6
{[%clk 1:03:41]} 42... b4 {[%clk 0:50:35]} 43. cxb4 {[%clk 1:03:17]} 43... axb4
{[%clk 0:50:41]} 44. Rc5 {[%clk 1:03:18]} 44... Ke6 {[%clk 0:50:16]} 45. Rc7
{[%clk 1:03:36]} 45... Rh4 {[%clk 0:49:49]} 46. Rxg7 {[%clk 1:03:41]} 46... Rxh5
{[%clk 0:50:14]} 47. Rg4 Ke5 1/2-1/2

[Variant "Standard"]
[Site "Europe Echecs"]

[Event "Championnat du monde jeunes U10"]
[Date "2024.11.20"]
[White "Shrubok, Herman"]
[Black "Lenkov, Stanislav"]
[WhiteElo "1477"]
[BlackElo "1693"]
[Round "6.46"]
[Result "1/2-1/2"]
[TimeControl "5400+30"]

1. e4 {[%clk 1:30:42]} 1... c5 {[%clk 1:30:02]} 2. Nf3 {[%clk 1:29:57]} 2... Nc6
{[%clk 1:29:34]} 3. d4 {[%clk 1:28:57]} 3... cxd4 {[%clk 1:28:58]} 4. Nxd4
{[%clk 1:29:15]} 4... g6 {[%clk 1:27:44]} 5. Nc3 {[%clk 1:27:57]} 5... Bg7
{[%clk 1:27:26]} 6. Be3 {[%clk 1:25:52]} 6... Nf6 {[%clk 1:25:49]} 7. Be2 {[%clk
1:22:51]} 7... O-O {[%clk 1:24:31]} 8. O-O {[%clk 1:20:52]} 8... d5 {[%clk
1:23:56]} 9. exd5 {[%clk 1:10:55]} 9... Nxd5 {[%clk 1:23:03]} 10. Nxd5 {[%clk
1:02:52]} 10... Nxd4 {[%clk 1:22:47]} 11. Bxd4 {[%clk 1:00:52]} 11... Qxd5
{[%clk 1:21:47]} 12. Bxg7 {[%clk 1:00:52]} 12... Qxd1 {[%clk 1:22:06]} 13. Rfxd1
{[%clk 1:00:52]} 13... Kxg7 {[%clk 1:22:17]} 14. c4 {[%clk 0:59:52]} 14... Be6
{[%clk 1:17:13]} 15. b3 {[%clk 0:58:52]} 15... a5 {[%clk 1:15:44]} 16. Bf3
{[%clk 0:59:21]} 16... Rab8 {[%clk 1:16:16]} 17. Kf1 {[%clk 0:59:39]} 17... h5
{[%clk 1:13:36]} 18. Ke2 {[%clk 0:56:52]} 18... Kf6 {[%clk 1:13:08]} 19. h4
{[%clk 0:55:52]} 19... Rfc8 {[%clk 1:10:58]} 20. a4 {[%clk 0:53:52]} 20... b6
{[%clk 1:10:44]} 21. Ke3 {[%clk 0:52:52]} 21... Rd8 {[%clk 1:10:04]} 22. Rxd8
{[%clk 0:52:52]} 22... Rxd8 {[%clk 1:10:28]} 23. Rd1 {[%clk 0:52:52]} 23... Rxd1
{[%clk 1:10:40]} 24. Bxd1 {[%clk 0:52:52]} 24... Ke5 {[%clk 1:11:01]} 25. Bc2
{[%clk 0:52:52]} 25... Bf5 {[%clk 1:11:15]} 26. Bd1 {[%clk 0:52:52]} 26... Be4
1/2-1/2

[Variant "Standard"]
[Site "Europe Echecs"]

[Event "Championnat du monde jeunes U10"]
[Date "2024.11.20"]
[White "Guntaka, Aayansh"]
[Black "Chen, Pin-Jui"]
[WhiteElo "1798"]
[BlackElo "1505"]
[Round "6.47"]
[Result "1-0"]
[TimeControl "5400+30"]

1. e4 {[%clk 1:30:58]} 1... e5 {[%clk 1:30:55]} 2. Nf3 {[%clk 1:31:24]} 2... Nc6
{[%clk 1:31:20]} 3. Bc4 {[%clk 1:31:48]} 3... Bc5 {[%clk 1:31:45]} 4. c3 {[%clk
1:32:14]} 4... Nf6 {[%clk 1:32:12]} 5. d4 {[%clk 1:32:38]} 5... exd4 {[%clk
1:32:32]} 6. cxd4 {[%clk 1:33:03]} 6... Bb4+ {[%clk 1:32:54]} 7. Bd2 {[%clk
1:33:27]} 7... Nxe4 {[%clk 1:33:18]} 8. Bxb4 {[%clk 1:33:52]} 8... Nxb4 {[%clk
1:33:43]} 9. Bxf7+ {[%clk 1:34:17]} 9... Kxf7 {[%clk 1:34:07]} 10. Qb3+ {[%clk
1:34:43]} 10... Kf8 {[%clk 1:34:32]} 11. Qxb4+ {[%clk 1:35:08]} 11... Qe7 {[%clk
1:34:58]} 12. Qxe7+ {[%clk 1:35:30]} 12... Kxe7 {[%clk 1:35:22]} 13. O-O {[%clk
1:35:56]} 13... Kd8 {[%clk 1:35:48]} 14. Re1 {[%clk 1:35:49]} 14... Nf6 {[%clk
1:36:13]} 15. Na3 {[%clk 1:33:48]} 15... d6 {[%clk 1:32:58]} 16. h3 {[%clk
1:29:27]} 16... Rf8 {[%clk 1:29:20]} 17. Rad1 {[%clk 1:23:29]} 17... Bf5 {[%clk
1:26:00]} 18. Nc4 {[%clk 1:22:22]} 18... Kd7 {[%clk 1:22:29]} 19. g4 {[%clk
1:16:46]} 19... Nxg4 {[%clk 1:11:27]} 20. hxg4 {[%clk 1:17:09]} 20... Bxg4
{[%clk 1:11:48]} 21. Nfe5+ {[%clk 1:17:34]} 21... dxe5 {[%clk 0:59:28]} 22.
Nxe5+ {[%clk 1:17:57]} 22... Kd6 {[%clk 0:59:25]} 23. Nc4+ {[%clk 1:18:01]}
23... Kd7 {[%clk 0:59:03]} 24. Ne5+ {[%clk 1:18:26]} 24... Kd6 {[%clk 0:59:30]}
25. Nxg4 {[%clk 1:18:52]} 25... Rf5 {[%clk 0:52:25]} 26. Ne3 {[%clk 1:18:30]}
26... Rg5+ {[%clk 0:50:00]} 27. Kf1 {[%clk 1:18:53]} 27... h5 {[%clk 0:50:02]}
28. Nc4+ {[%clk 1:19:14]} 28... Kd7 {[%clk 0:47:10]} 29. Ne5+ {[%clk 1:18:56]}
29... Kc8 {[%clk 0:44:55]} 30. Nf7 {[%clk 1:18:35]} 30... Rf5 {[%clk 0:44:12]}
31. Re8+ {[%clk 1:18:52]} 31... Kd7 {[%clk 0:44:37]} 32. Rxa8 {[%clk 1:19:18]}
32... Rxf7 {[%clk 0:45:01]} 33. Rg8 {[%clk 1:19:24]} 33... h4 {[%clk 0:45:12]}
34. Ke2 {[%clk 1:19:40]} 34... Kd6 {[%clk 0:45:17]} 35. Rh1 {[%clk 1:19:52]}
35... Rf4 {[%clk 0:45:41]} 36. Ke3 {[%clk 1:20:18]} 36... Rg4 {[%clk 0:45:49]}
1-0

[Variant "Standard"]
[Site "Europe Echecs"]

[Event "Championnat du monde jeunes U10"]
[Date "2024.11.20"]
[White "Bartash, Saveli"]
[Black "Chkhartishvili, Lazare"]
[WhiteElo "1661"]
[BlackElo "1836"]
[Round "6.48"]
[Result "0-1"]
[TimeControl "5400+30"]

1. e4 {[%clk 1:30:53]} 1... c5 {[%clk 1:30:58]} 2. Nf3 {[%clk 1:31:00]} 2... Nc6
{[%clk 1:31:19]} 3. d4 {[%clk 1:31:11]} 3... cxd4 {[%clk 1:31:42]} 4. Nxd4
{[%clk 1:31:29]} 4... Nf6 {[%clk 1:32:05]} 5. Nc3 {[%clk 1:31:35]} 5... e5
{[%clk 1:32:24]} 6. Ndb5 {[%clk 1:31:48]} 6... d6 {[%clk 1:32:33]} 7. Bg5 {[%clk
1:31:52]} 7... a6 {[%clk 1:32:25]} 8. Na3 {[%clk 1:32:07]} 8... b5 {[%clk
1:32:35]} 9. Nd5 {[%clk 1:32:09]} 9... Be7 {[%clk 1:32:06]} 10. Bxf6 {[%clk
1:32:17]} 10... Bxf6 {[%clk 1:32:22]} 11. c3 {[%clk 1:32:24]} 11... O-O {[%clk
1:32:29]} 12. h4 {[%clk 1:32:07]} 12... g6 {[%clk 1:21:57]} 13. g3 {[%clk
1:30:00]} 13... Bg7 {[%clk 1:20:39]} 14. h5 {[%clk 1:23:41]} 14... Ne7 {[%clk
1:14:28]} 15. Nc2 {[%clk 1:21:33]} 15... Nxd5 {[%clk 1:13:08]} 16. Qxd5 {[%clk
1:21:48]} 16... Be6 {[%clk 1:12:58]} 17. Qd2 {[%clk 1:18:44]} 17... d5 {[%clk
0:57:42]} 18. Bg2 {[%clk 1:15:01]} 18... dxe4 {[%clk 0:48:56]} 19. Qxd8 {[%clk
1:12:29]} 19... Raxd8 {[%clk 0:42:24]} 20. Bxe4 {[%clk 1:11:44]} 20... Rd6
{[%clk 0:29:45]} 21. Nb4 {[%clk 1:03:20]} 21... a5 {[%clk 0:22:09]} 22. Nc6
{[%clk 1:00:40]} 22... f5 {[%clk 0:22:05]} 23. Bg2 {[%clk 0:59:40]} 23... e4
{[%clk 0:14:42]} 24. Nxa5 {[%clk 0:58:32]} 24... Ra6 {[%clk 0:14:40]} 25. Nb7
{[%clk 0:58:39]} 25... Rxa2 {[%clk 0:13:53]} 26. Rxa2 {[%clk 0:57:25]} 26...
Bxa2 {[%clk 0:14:16]} 27. hxg6 {[%clk 0:55:34]} 27... hxg6 {[%clk 0:13:51]} 28.
O-O {[%clk 0:54:21]} 28... Rb8 {[%clk 0:09:39]} 29. Na5 {[%clk 0:51:06]} 29...
Ra8 {[%clk 0:06:33]} 30. Nc6 {[%clk 0:50:27]} 30... Bb3 {[%clk 0:06:19]} 31. Nb4
{[%clk 0:49:56]} 31... Bf8 {[%clk 0:03:05]} 32. Rb1 {[%clk 0:48:04]} 32... Bxb4
{[%clk 0:02:38]} 33. cxb4 {[%clk 0:48:29]} 33... Ra4 {[%clk 0:03:07]} 34. Rc1
{[%clk 0:48:35]} 34... Bc4 {[%clk 0:02:10]} 35. Bf1 {[%clk 0:45:02]} 35... Rxb4
{[%clk 0:02:16]} 36. Bxc4+ {[%clk 0:45:11]} 36... Rxc4 {[%clk 0:02:30]} 37. Rd1
{[%clk 0:44:06]} 37... Rc2 {[%clk 0:02:33]} 38. b4 {[%clk 0:43:55]} 38... Rc4
{[%clk 0:02:48]} 39. Rb1 {[%clk 0:44:16]} 39... Kf7 {[%clk 0:02:55]} 40. Kf1
{[%clk 0:44:40]} 40... Ke6 {[%clk 0:03:06]} 41. Ke2 {[%clk 0:44:53]} 41... Rd4
{[%clk 0:03:26]} 42. Ke3 {[%clk 0:44:35]} 42... Ke5 {[%clk 0:02:34]} 43. Rb3
{[%clk 0:42:16]} 43... g5 {[%clk 0:02:06]} 44. Rb2 {[%clk 0:41:37]} 44... f4+
{[%clk 0:02:05]} 45. gxf4+ {[%clk 0:41:19]} 45... gxf4+ {[%clk 0:02:31]} 46. Ke2
{[%clk 0:41:42]} 46... f3+ {[%clk 0:02:59]} 47. Ke1 {[%clk 0:42:04]} 47... Kf4
{[%clk 0:03:18]} 48. Rb3 {[%clk 0:42:02]} 48... Rd3 {[%clk 0:02:50]} 49. Rb1
{[%clk 0:38:11]} 49... e3 {[%clk 0:01:26]} 50. fxe3+ Kxe3 {[%clk 0:01:50]} 51.
Rb2 {[%clk 0:37:48]} 51... Ra3 {[%clk 0:01:36]} 52. Rb1 {[%clk 0:37:49]} 52...
Rc3 {[%clk 0:01:58]} 53. Kf1 {[%clk 0:36:09]} 53... f2 {[%clk 0:01:44]} 54. Kg2
{[%clk 0:34:17]} 54... Rd3 {[%clk 0:01:19]} 55. Rb2 {[%clk 0:33:03]} 55... Rd2
{[%clk 0:01:16]} 56. Rb3+ {[%clk 0:33:04]} 56... Ke2 {[%clk 0:01:39]} 57. Rb1
{[%clk 0:32:11]} 57... Rd1 {[%clk 0:01:54]} 58. Rxd1 {[%clk 0:30:16]} 58... Kxd1
{[%clk 0:02:17]} 59. Kxf2 {[%clk 0:30:41]} 59... Kd2 {[%clk 0:02:44]} 60. Kf1
{[%clk 0:30:46]} 60... Kc3 {[%clk 0:03:04]} 61. Ke2 {[%clk 0:31:08]} 61... Kxb4
{[%clk 0:03:29]} 62. Kd2 {[%clk 0:31:26]} 62... Kb3 {[%clk 0:03:55]} 63. Kc1
{[%clk 0:31:50]} 63... Ka2 {[%clk 0:04:21]} 64. Kc2 {[%clk 0:32:14]} 64... b4
{[%clk 0:04:48]} 0-1

[Variant "Standard"]
[Site "Europe Echecs"]

[Event "Championnat du monde jeunes U10"]
[Date "2024.11.20"]
[White "Grimm, Jakob"]
[Black "Kovacs, Balazs"]
[WhiteElo "1646"]
[BlackElo "1800"]
[Round "6.1"]
[Result "1-0"]
[TimeControl "5400+30"]

1. e4 {[%clk 1:31:00]} 1... c5 {[%clk 1:30:55]} 2. Nf3 {[%clk 1:31:28]} 2... Nc6
{[%clk 1:31:20]} 3. d4 {[%clk 1:31:51]} 3... cxd4 {[%clk 1:31:46]} 4. Nxd4
{[%clk 1:32:17]} 4... Qb6 {[%clk 1:32:11]} 5. c3 {[%clk 1:30:30]} 5... e6 {[%clk
1:28:41]} 6. g3 {[%clk 1:24:37]} 6... Bc5 {[%clk 1:14:16]} 7. Na3 {[%clk
0:59:00]} 7... Bxd4 {[%clk 0:50:14]} 8. cxd4 {[%clk 0:54:44]} 8... Nf6 {[%clk
0:39:04]} 9. e5 {[%clk 0:51:31]} 9... Ne4 {[%clk 0:34:33]} 10. Bg2 {[%clk
0:40:14]} 10... Nxf2 {[%clk 0:31:42]} 11. Kxf2 {[%clk 0:39:01]} 11... Nxd4
{[%clk 0:32:05]} 12. Nc4 {[%clk 0:39:18]} 12... Qc5 {[%clk 0:31:12]} 13. Nd6+
{[%clk 0:37:31]} 13... Ke7 {[%clk 0:30:54]} 14. Be3 {[%clk 0:34:18]} 14... Qxe5
{[%clk 0:25:14]} 15. Nxc8+ {[%clk 0:33:25]} 15... Raxc8 {[%clk 0:24:53]} 16.
Qxd4 {[%clk 0:28:43]} 16... Rc2+ {[%clk 0:25:16]} 17. Kg1 {[%clk 0:28:21]} 17...
Qb5 {[%clk 0:24:10]} 18. Rd1 {[%clk 0:25:30]} 18... Rhc8 {[%clk 0:20:44]} 19.
Be4 {[%clk 0:20:40]} 19... Rxb2 {[%clk 0:09:35]} 20. a4 {[%clk 0:17:13]} 20...
Qc4 {[%clk 0:06:51]} 21. Qxb2 {[%clk 0:13:03]} 21... Qxe4 {[%clk 0:07:09]} 22.
Qd4 {[%clk 0:12:54]} 22... Qf3 {[%clk 0:03:27]} 23. Bg5+ {[%clk 0:11:37]} 23...
Kf8 {[%clk 0:03:07]} 24. Qxd7 {[%clk 0:10:48]} 24... Qc6 {[%clk 0:02:04]} 25.
Be7+ {[%clk 0:10:50]} 25... Kg8 {[%clk 0:02:29]} 26. Qd8+ {[%clk 0:11:13]} 26...
Qe8 {[%clk 0:02:55]} 27. Qxe8+ {[%clk 0:10:55]} 27... Rxe8 {[%clk 0:03:18]} 28.
Rd8 {[%clk 0:10:54]} 1-0

[Variant "Standard"]
[Site "Europe Echecs"]

[Event "Championnat du monde jeunes U10"]
[Date "2024.11.20"]
[White "Kalinichenko, German Yu"]
[Black "Akramov, Khusan"]
[WhiteElo "1621"]
[BlackElo "1782"]
[Round "6.2"]
[Result "0-1"]
[TimeControl "5400+30"]

1. d4 {[%clk 1:30:56]} 1... Nf6 {[%clk 1:30:57]} 2. Nc3 {[%clk 1:31:17]} 2... d5
{[%clk 1:31:22]} 3. e4 {[%clk 1:31:40]} 3... dxe4 {[%clk 1:31:29]} 4. f3 {[%clk
1:32:05]} 4... Bf5 {[%clk 1:29:12]} 5. fxe4 {[%clk 1:32:28]} 5... Bxe4 {[%clk
1:29:06]} 6. Nxe4 {[%clk 1:32:33]} 6... Nxe4 {[%clk 1:29:17]} 7. Bd3 {[%clk
1:31:26]} 7... Nf6 {[%clk 1:29:24]} 8. Nf3 {[%clk 1:31:29]} 8... g6 {[%clk
1:28:55]} 9. Bg5 {[%clk 1:31:03]} 9... Bg7 {[%clk 1:28:52]} 10. Qd2 {[%clk
1:30:38]} 10... h6 {[%clk 1:27:55]} 11. Bf4 {[%clk 1:29:47]} 11... Nbd7 {[%clk
1:27:08]} 12. O-O-O {[%clk 1:28:59]} 12... Nd5 {[%clk 1:24:56]} 13. Rdf1 {[%clk
1:27:57]} 13... Nxf4 {[%clk 1:22:48]} 14. Qxf4 {[%clk 1:28:07]} 14... O-O {[%clk
1:18:40]} 15. h4 {[%clk 1:27:42]} 15... h5 {[%clk 1:12:33]} 16. Ne5 {[%clk
1:25:20]} 16... Nxe5 {[%clk 1:11:56]} 17. dxe5 {[%clk 1:25:45]} 17... Qd5 {[%clk
1:10:23]} 18. Bc4 Qxe5 {[%clk 1:10:05]} 19. Bxf7+ {[%clk 1:22:15]} 19... Kh7
{[%clk 1:09:55]} 20. Qxe5 {[%clk 1:22:37]} 20... Bxe5 {[%clk 1:10:18]} 21. g4
{[%clk 1:22:47]} 21... hxg4 {[%clk 1:10:09]} 22. h5 {[%clk 1:22:56]} 22... g5
{[%clk 1:09:56]} 23. Bg6+ {[%clk 1:20:29]} 23... Kh6 {[%clk 1:09:59]} 24. Rhg1
{[%clk 1:20:17]} 24... Rxf1+ {[%clk 1:09:29]} 25. Rxf1 {[%clk 1:20:41]} 25...
Bf4+ {[%clk 1:09:54]} 26. Kb1 {[%clk 1:20:21]} 26... Rd8 {[%clk 1:08:17]} 27. b3
{[%clk 1:19:41]} 27... g3 {[%clk 1:08:12]} 28. Rg1 {[%clk 1:19:57]} 28... Rd2
{[%clk 1:07:31]} 29. a4 {[%clk 1:20:12]} 29... Be5 {[%clk 1:05:58]} 30. Be4
{[%clk 1:19:59]} 30... Bd4 {[%clk 1:06:12]} 31. Kc1 {[%clk 1:19:48]} 31... Re2
{[%clk 1:05:09]} 32. Bf3 {[%clk 1:19:54]} 32... Bxg1 {[%clk 1:05:31]} 33. Bxe2
{[%clk 1:20:19]} 33... Be3+ {[%clk 1:05:58]} 0-1

[Variant "Standard"]
[Site "Europe Echecs"]

[Event "Championnat du monde jeunes U10"]
[Date "2024.11.20"]
[White "Gomez Silva, Maximiliano"]
[Black "Zhou, Martin"]
[WhiteElo "1643"]
[BlackElo "1776"]
[Round "6.3"]
[Result "1-0"]
[TimeControl "5400+30"]

1. d4 {[%clk 1:30:57]} 1... Nf6 {[%clk 1:30:56]} 2. Nf3 {[%clk 1:31:09]} 2... g6
{[%clk 1:31:21]} 3. g3 {[%clk 1:31:17]} 3... Bg7 {[%clk 1:31:45]} 4. Bg2 {[%clk
1:31:37]} 4... O-O {[%clk 1:32:06]} 5. O-O {[%clk 1:31:59]} 5... d6 {[%clk
1:32:18]} 6. c4 {[%clk 1:31:53]} 6... Nbd7 {[%clk 1:32:44]} 7. Nc3 {[%clk
1:30:54]} 7... e5 {[%clk 1:26:32]} 8. e4 {[%clk 1:29:42]} 8... exd4 {[%clk
1:26:07]} 9. Nxd4 {[%clk 1:29:50]} 9... Re8 {[%clk 1:25:13]} 10. Rb1 {[%clk
1:17:26]} 10... Nc5 {[%clk 1:09:36]} 11. Re1 {[%clk 1:08:22]} 11... a5 {[%clk
1:08:24]} 12. a3 {[%clk 1:01:07]} 12... a4 {[%clk 1:08:04]} 13. Ndb5 {[%clk
0:56:26]} 13... Be6 {[%clk 0:52:12]} 14. e5 {[%clk 0:45:57]} 14... Ng4 {[%clk
0:35:23]} 15. exd6 {[%clk 0:37:54]} 15... cxd6 {[%clk 0:35:19]} 16. Nxd6 {[%clk
0:34:14]} 16... Re7 {[%clk 0:14:28]} 17. Nde4 {[%clk 0:10:08]} 17... Rd7 {[%clk
0:10:28]} 18. Nd5 {[%clk 0:05:52]} 18... Nb3 {[%clk 0:05:29]} 19. Bg5 {[%clk
0:03:58]} 19... f6 {[%clk 0:03:32]} 20. Bxf6 {[%clk 0:03:50]} 20... Bxf6 {[%clk
0:01:40]} 21. Nexf6+ {[%clk 0:04:11]} 21... Nxf6 {[%clk 0:01:20]} 22. Rxe6
{[%clk 0:04:29]} 22... Nxd5 {[%clk 0:00:50]} 23. Bxd5 {[%clk 0:04:33]} 23... Kh8
{[%clk 0:01:03]} 24. Qd3 {[%clk 0:01:59]} 24... Rg7 {[%clk 0:00:42]} 25. Qe3
{[%clk 0:01:21]} 25... Qd7 {[%clk 0:00:42]} 26. Re1 Rf8 {[%clk 0:00:35]} 27. Re8
{[%clk 0:00:52]} 27... Rxe8 {[%clk 0:00:38]} 28. Qxe8+ {[%clk 0:01:16]} 28...
Qxe8 {[%clk 0:00:59]} 29. Rxe8+ {[%clk 0:01:41]} 29... Rg8 {[%clk 0:01:24]} 30.
Rxg8# {[%clk 0:02:01]} 1-0

[Variant "Standard"]
[Site "Europe Echecs"]